bitfinex/quotes_ETHUSD_20250626
["timestamp","ask_amount","ask_price","bid_price","bid_amount"]
[1750966124938,10.82719148,2431.8,2431.5,0.7997]
[1750966125634,0.55,2431.7,2431.5,0.7997]
[1750966125840,0.55,2431.7,2431.3,0.7997]
[1750966125841,0.55,2431.5,2431.3,0.7997]
[1750966126041,10.82685679,2431.4,2431.3,0.7997]
[1750966126210,11.03245679,2431.4,2431.3,0.7997]
[1750966127631,11.03245679,2431.4,2431.0,0.8264]
[1750966127632,4.11328588,2431.2,2431.0,0.8264]
[1750966127859,11.03296432,2431.1,2431.0,0.8264]
[1750966128017,11.03296432,2431.1,2430.8,0.8289]
[1750966128018,0.55,2431.0,2430.8,0.8289]
[1750966128208,6.9196,2430.9,2430.8,0.8289]
[1750966129439,11.03330274,2430.9,2430.8,0.8289]
[1750966130942,11.58330274,2430.9,2430.8,0.8289]
[1750966131109,8.54428559,2430.9,2430.6,0.002]
[1750966131313,6.9196,2430.9,2430.6,0.002]
[1750966132136,11.03330555,2430.9,2430.6,0.002]
[1750966132822,6.714,2430.8,2430.7,0.7822]
[1750966134033,0.2056,2430.9,2430.7,0.7822]
[1750966134829,6.714,2431.0,2430.7,0.7822]
[1750966135030,6.714,2431.0,2430.7,0.9878]
[1750966135340,6.714,2431.0,2430.8,0.7822]
[1750966137545,0.2056,2431.3,2430.9,0.2056]
[1750966137718,6.713,2431.2,2430.9,0.2056]
[1750966140728,10.82624408,2431.2,2430.9,0.2056]
[1750966142061,6.713,2431.2,2430.8,0.7822]
[1750966142286,6.9186,2431.2,2430.8,0.7822]
[1750966142440,11.03189096,2431.2,2430.8,0.7822]
[1750966142640,4.11338038,2431.1,2430.8,0.7822]
[1750966143183,4.11361869,2431.0,2430.8,0.7822]
[1750966143475,4.31921869,2431.0,2430.8,0.7822]
[1750966143829,0.2056,2431.0,2430.8,0.7822]
[1750966146730,0.2056,2431.1,2430.8,0.7822]
[1750966149286,4.31912359,2431.1,2430.8,0.7822]
[1750966149480,4.11355882,2431.0,2430.8,0.7822]
[1750966149861,4.31904802,2431.1,2430.8,0.7822]
[1750966150578,4.11360547,2431.0,2430.8,0.7822]
[1750966150778,4.31905371,2431.1,2430.8,0.7822]
[1750966151078,0.2056,2431.1,2430.8,0.7822]
[1750966155455,6.9176,2431.1,2430.8,0.7822]
[1750966156892,11.03098084,2431.1,2430.8,0.7822]
[1750966157211,4.11361236,2431.0,2430.8,0.7822]
[1750966157415,4.11361236,2431.0,2430.7,0.2056]
[1750966157694,4.11377903,2430.9,2430.6,0.7998]
[1750966157865,6.711,2430.8,2430.6,0.7998]
[1750966168507,6.711,2430.8,2430.6,0.002]
[1750966169077,11.03058573,2430.8,2430.6,0.002]
[1750966169284,11.80031694,2430.8,2430.6,0.002]
[1750966169582,7.68633121,2430.8,2430.6,0.002]
[1750966170029,4.11404122,2430.7,2430.6,0.002]
[1750966170177,4.66404122,2430.7,2430.6,0.002]
[1750966170378,7.08266935,2430.7,2430.6,0.002]
[1750966174720,8.90742813,2430.7,2430.6,0.002]
[1750966175016,7.261,2430.7,2430.6,0.002]
[1750966176596,11.37504122,2430.7,2430.6,0.002]
[1750966176902,7.26,2430.7,2430.6,0.002]
[1750966179984,6.71,2430.7,2430.6,0.002]
[1750966181622,11.37404122,2430.7,2430.6,0.002]
[1750966181822,12.94339611,2430.7,2430.6,0.002]
[1750966182218,8.82935489,2430.7,2430.6,0.002]
[1750966182422,12.94339611,2430.7,2430.6,0.002]
[1750966182730,14.72462143,2430.7,2430.6,0.002]
[1750966190870,13.37902143,2430.7,2430.6,0.002]
[1750966191211,13.92902143,2430.7,2430.6,0.002]
[1750966191663,14.74642143,2430.7,2430.6,0.002]
[1750966192642,33.27245781,2430.7,2430.6,0.002]
[1750966200970,37.60245781,2430.7,2430.6,0.002]
[1750966201972,18.03642143,2430.7,2430.6,0.002]
[1750966202172,26.48442143,2430.7,2430.6,0.002]
[1750966204744,25.66702143,2430.7,2430.6,0.002]
[1750966205083,25.66702143,2430.7,2430.6,0.7937]
[1750966205084,7.69562532,2430.7,2430.6,0.7937]
[1750966205266,6.71,2430.7,2430.6,0.7937]
[1750966205467,7.69562532,2430.7,2430.6,0.7937]
[1750966205670,0.98562532,2430.7,2430.6,0.7937]
[1750966205985,6.71,2430.9,2430.6,0.7937]
[1750966206289,6.9156,2431.0,2430.6,0.7937]
[1750966206491,0.98562532,2430.9,2430.6,0.7937]
[1750966206649,6.9156,2431.0,2430.6,0.7937]
[1750966206851,0.2056,2431.0,2430.6,0.7937]
[1750966207162,0.98562532,2431.2,2430.9,0.2056]
[1750966207486,0.98562532,2431.4,2431.0,0.8092]
[1750966207688,0.98562532,2431.3,2431.0,8.52603638]
[1750966207864,0.98562532,2431.4,2431.3,0.2056]
[1750966208066,0.98562532,2431.7,2431.4,0.8092]
[1750966208387,6.9146,2431.8,2431.4,0.8092]
[1750966208388,0.98562532,2431.6,2431.4,0.8092]
[1750966208557,0.98562532,2431.5,2431.4,0.8092]
[1750966209258,0.98562532,2431.7,2431.4,0.8092]
[1750966209982,6.9146,2431.8,2431.4,0.8092]
[1750966210187,7.90022532,2431.8,2431.4,0.8092]
[1750966210361,6.9146,2431.8,2431.4,0.8092]
[1750966211556,6.9136,2431.8,2431.4,0.8092]
[1750966211967,0.2056,2431.8,2431.4,0.8092]
[1750966212167,6.9136,2431.8,2431.4,0.8092]
[1750966213057,0.2056,2431.8,2431.4,0.8092]
[1750966213274,6.9126,2431.8,2431.4,0.8092]
[1750966214662,11.0247863,2431.8,2431.4,0.8092]
[1750966214887,6.9126,2431.8,2431.4,0.8092]
[1750966215084,0.2056,2431.8,2431.4,0.8092]
[1750966223900,0.001,2432.1,2431.4,0.8092]
[1750966224085,0.001,2432.1,2431.8,0.8155]
[1750966226998,0.001,2432.1,2432.0,0.823]
[1750966227373,0.001,2432.1,2432.0,1.0278]
[1750966229704,0.001,2432.1,2431.8,0.823]
[1750966230010,0.001,2432.1,2431.8,1.0286]
[1750966230219,0.7,2431.9,2431.8,1.47146]
[1750966230529,0.7,2431.9,2431.8,1.26586]
[1750966230716,0.7,2431.9,2431.8,1.47146]
[1750966230886,0.001,2432.1,2431.9,0.8122]
[1750966231327,0.001,2432.1,2432.0,0.2048]
[1750966231537,0.001,2432.1,2432.0,1.017]
[1750966231694,0.001,2432.1,2432.0,2.18928964]
[1750966236198,0.001,2432.1,2432.0,1.017]
[1750966240738,0.001,2432.1,2431.8,0.7917]
[1750966240934,0.001,2432.1,2431.8,0.9973]
[1750966241408,0.001,2432.1,2431.8,0.2056]
[1750966242102,0.001,2432.1,2431.5,0.93352364]
[1750966242307,0.001,2432.1,2431.3,0.8149]
[1750966242508,0.2058,2432.1,2431.6,0.2056]
[1750966242923,4.31757234,2432.1,2431.6,0.2056]
[1750966245243,0.7,2431.9,2431.6,0.2056]
[1750966245740,0.7,2431.9,2431.7,0.8035]
[1750966246543,0.7,2431.9,2431.8,0.2056]
[1750966250738,0.7,2431.9,2431.8,1.0224]
[1750966250943,0.001,2432.1,2431.8,2.03589574]
[1750966251113,0.001,2432.1,2432.0,0.2048]
[1750966253147,0.001,2432.1,2432.0,1.0268]
[1750966253341,0.001,2432.1,2432.0,9.55283638]
[1750966260553,0.001,2432.1,2432.0,1.0268]
[1750966260851,0.001,2432.1,2432.0,28.27754595]
[1750966263231,0.001,2432.1,2432.0,42.29284905]
[1750966263648,0.001,2432.8,2432.4,0.7978]
[1750966263948,0.001,2432.8,2432.7,9.32383638]
[1750966264249,0.001,2432.8,2432.7,9.52863638]
[1750966264453,0.001,2432.8,2432.7,12.66540002]
[1750966265550,0.001,2432.8,2432.7,4.13936364]
[1750966265849,0.001,2432.8,2432.7,12.57836364]
[1750966267316,0.001,2432.8,2432.7,11.78056364]
[1750966268567,0.001,2432.8,2432.7,3.34156364]
[1750966268784,0.001,2432.8,2432.2,0.7591]
[1750966268936,0.001,2432.8,2432.5,0.2048]
[1750966271477,0.001,2432.8,2432.3,8.52603638]
[1750966271649,0.001,2432.8,2432.7,0.2048]
[1750966276882,0.001,2432.8,2432.7,7.713]
[1750966277052,0.001,2432.8,2432.7,19.67690364]
[1750966278457,0.001,2432.8,2432.7,23.07690364]
[1750966278661,0.001,2432.8,2432.7,47.40751457]
[1750966278983,0.001,2432.8,2432.7,31.71771664]
[1750966279190,0.001,2432.8,2432.7,31.31771664]
[1750966280540,0.001,2432.8,2432.7,23.07690364]
[1750966281673,0.001,2432.8,2432.7,24.81290364]
[1750966282075,0.001,2432.8,2432.7,35.58796364]
[1750966282275,0.001,2432.8,2432.7,39.69862257]
[1750966284080,0.001,2433.1,2433.0,4.94165207]
[1750966284268,0.001,2433.1,2433.0,22.07589545]
[1750966284469,0.001,2433.1,2433.0,22.28069545]
[1750966284775,0.001,2433.1,2433.0,18.17054338]
[1750966288167,0.001,2433.1,2433.0,11.67836835]
[1750966288564,0.001,2433.1,2433.0,18.03539835]
[1750966288768,0.001,2433.1,2433.0,11.67836835]
[1750966288974,0.001,2433.1,2433.0,13.72328835]
[1750966290682,0.001,2433.1,2433.0,13.92338835]
[1750966291552,0.001,2433.1,2433.0,28.55321635]
[1750966292746,0.001,2433.1,2433.0,30.65921635]
[1750966293087,0.001,2433.1,2433.0,34.76936842]
[1750966293273,0.001,2433.1,2433.0,29.32021635]
[1750966293669,0.001,2433.1,2433.0,29.12021635]
[1750966293852,0.001,2433.1,2433.0,15.67821635]
[1750966294059,0.001,2433.1,2433.0,13.24236835]
[1750966294258,0.001,2433.1,2433.0,20.84686835]
[1750966295782,0.001,2433.1,2433.0,12.110007]
[1750966295985,0.001,2433.1,2433.0,16.9048]
[1750966296588,0.001,2433.1,2433.0,10.2048]
[1750966298389,0.001,2433.1,2433.0,0.2048]
[1750966300761,0.001,2433.1,2432.9,6.9058]
[1750966301085,0.001,2433.1,2432.9,0.2048]
[1750966301458,0.83,2433.0,2432.9,0.2048]
[1750966307803,0.001,2433.1,2432.9,0.2048]
[1750966310200,0.001,2433.1,2432.9,8.73083638]
[1750966310389,0.001,2433.1,2433.0,12.11538364]
[1750966312982,0.001,2433.1,2433.0,22.11538364]
[1750966313677,0.001,2433.1,2433.0,56.22553571]
[1750966313998,0.001,2433.1,2433.0,51.93086171]
[1750966314389,0.001,2433.1,2433.0,40.47072864]
[1750966314792,0.001,2433.2,2433.1,10.7756]
[1750966315104,0.001,2433.2,2433.1,18.89890738]
[1750966315400,0.001,2433.2,2433.1,8.18892424]
[1750966315589,0.001,2433.2,2433.1,18.18892424]
[1750966317006,0.001,2433.3,2433.2,10.7756]
[1750966317212,0.001,2434.1,2433.8,9.30163638]
[1750966317373,0.001,2434.1,2433.9,0.93016364]
[1750966320273,0.001,2434.1,2433.9,1.13496364]
[1750966320808,0.001,2434.1,2433.9,4.53496364]
[1750966321919,0.001,2434.1,2433.9,14.53496364]
[1750966322086,0.001,2434.1,2433.9,19.43479587]
[1750966322275,0.001,2434.1,2433.9,15.32616364]
[1750966323173,0.001,2434.1,2433.9,39.80426387]
[1750966324097,0.001,2434.1,2434.0,40.8201]
[1750966324282,0.001,2434.1,2434.0,43.15735847]
[1750966324481,0.001,2434.1,2434.0,36.73135847]
[1750966324901,0.001,2434.1,2434.0,21.75014847]
[1750966325075,0.001,2434.1,2434.0,24.20514847]
[1750966325711,0.001,2434.1,2434.0,23.99442424]
[1750966326192,0.001,2434.1,2434.0,25.52952424]
[1750966326398,0.001,2434.1,2434.0,51.53942424]
[1750966326595,0.001,2434.1,2434.0,54.51889624]
[1750966327499,0.001,2434.1,2434.0,54.93942424]
[1750966329387,0.001,2434.1,2434.0,47.09513124]
[1750966329585,0.001,2434.1,2434.0,43.23062324]
[1750966329799,0.001,2434.1,2434.0,36.03062324]
[1750966330516,0.001,2434.1,2434.0,46.73072524]
[1750966330717,0.001,2434.1,2434.0,43.58072524]
[1750966330918,0.001,2434.1,2434.0,38.04882524]
[1750966331086,0.001,2434.1,2434.0,35.95482524]
[1750966331513,0.001,2434.1,2434.0,39.84973724]
[1750966332491,0.001,2434.1,2434.0,50.81118224]
[1750966333393,0.001,2434.1,2434.0,54.93942424]
[1750966333587,0.001,2434.1,2434.0,49.21518224]
[1750966334194,0.001,2434.1,2434.0,53.32364567]
[1750966334401,0.001,2434.1,2434.0,59.04788767]
[1750966335126,0.001,2434.1,2434.0,42.41508224]
[1750966335323,0.001,2434.1,2434.0,38.61508224]
[1750966335525,0.001,2434.1,2434.0,23.26842424]
[1750966335931,0.001,2434.1,2434.0,12.44832424]
[1750966336132,0.001,2434.1,2434.0,8.434]
[1750966336436,0.001,2434.1,2434.0,18.434]
[1750966338427,0.001,2434.1,2434.0,25.9039]
[1750966339426,0.001,2434.1,2434.0,18.434]
[1750966339624,0.001,2434.1,2434.0,53.85116343]
[1750966339826,0.001,2434.1,2434.0,53.75602424]
[1750966340633,0.001,2434.1,2434.0,23.75602424]
[1750966340934,0.001,2434.1,2434.0,25.77412424]
[1750966342542,0.001,2434.1,2434.0,52.87828224]
[1750966343119,0.001,2434.1,2434.0,49.98928224]
[1750966343321,0.001,2434.1,2434.0,23.20602424]
[1750966343529,0.001,2434.1,2434.0,46.12118224]
[1750966343936,0.001,2434.1,2434.0,45.86393724]
[1750966344252,0.001,2434.1,2434.0,44.71483724]
[1750966344439,0.001,2434.1,2434.0,53.20602424]
[1750966345456,0.001,2434.1,2434.0,48.66808224]
[1750966345625,0.001,2434.1,2434.0,45.16808224]
[1750966345822,0.001,2434.1,2434.0,34.41083724]
[1750966348556,0.001,2434.1,2434.0,23.20602424]
[1750966349674,0.001,2434.1,2434.0,22.44632424]
[1750966350262,0.001,2434.1,2434.0,18.433]
[1750966353835,0.001,2434.1,2434.0,19.2285]
[1750966354760,0.001,2434.1,2434.0,18.433]
[1750966361374,0.001,2434.1,2434.0,10.0]
[1750966361688,0.001,2434.1,2434.0,18.43]
[1750966362747,0.001,2434.1,2434.0,10.0]
[1750966363288,0.001,2434.1,2434.0,16.696]
[1750966363487,0.001,2434.1,2434.0,10.0]
[1750966363647,0.001,2434.1,2434.0,16.696]
[1750966364383,0.001,2434.1,2434.0,10.0]
[1750966364581,0.001,2434.1,2434.0,18.43]
[1750966364966,0.001,2434.1,2434.0,26.93221037]
[1750966367872,0.001,2434.1,2434.0,29.74028435]
[1750966368684,0.001,2434.1,2434.0,50.61984735]
[1750966369445,0.001,2434.1,2434.0,53.76939435]
[1750966370269,0.001,2434.1,2434.0,57.87785778]
[1750966370444,0.001,2434.1,2434.0,54.56639435]
[1750966370645,0.001,2434.1,2434.0,64.64574778]
[1750966371440,0.001,2434.1,2434.0,53.25260835]
[1750966371645,0.001,2434.1,2434.0,57.17107178]
[1750966372751,0.001,2434.1,2434.0,64.64574778]
[1750966373258,0.001,2434.1,2434.0,63.86582078]
[1750966373673,0.001,2434.1,2434.0,34.64574778]
[1750966373877,0.001,2434.1,2434.0,67.26582078]
[1750966374576,0.001,2434.1,2434.0,25.50728435]
[1750966374765,0.001,2434.1,2434.0,40.00428435]
[1750966375975,0.001,2434.1,2434.0,40.00328435]
[1750966376175,0.001,2434.1,2434.0,24.71028435]
[1750966376351,0.001,2434.1,2434.0,33.13828435]
[1750966377880,0.001,2434.1,2434.0,16.20807398]
[1750966378102,0.001,2434.1,2434.0,24.63607398]
[1750966379651,0.001,2434.1,2434.0,21.23607398]
[1750966379852,0.001,2434.1,2434.0,12.80807398]
[1750966380387,0.001,2434.1,2434.0,21.31028435]
[1750966380688,0.001,2434.1,2434.0,29.73828435]
[1750966381072,0.001,2434.1,2434.0,21.31028435]
[1750966381285,0.001,2434.1,2434.0,29.73828435]
[1750966383381,0.001,2434.1,2434.0,21.31028435]
[1750966383580,0.001,2434.1,2434.0,29.73828435]
[1750966384205,0.001,2434.1,2434.0,23.04428435]
[1750966384413,0.001,2434.1,2434.0,29.73828435]
[1750966384802,0.001,2434.1,2434.0,23.04428435]
[1750966384991,0.001,2434.1,2434.0,29.73828435]
[1750966385719,0.7548,2434.1,2433.9,3.6048]
[1750966385878,0.7548,2434.1,2433.9,0.2048]
[1750966392386,0.7548,2434.1,2434.0,26.01971037]
[1750966392387,0.001,2434.1,2434.0,26.01971037]
[1750966392631,0.001,2434.1,2434.0,28.22237503]
[1750966392840,0.001,2434.1,2434.0,13.02616466]
[1750966393130,0.7819,2434.1,2434.0,16.694]
[1750966395923,0.001,2434.1,2434.0,16.694]
[1750966404913,0.001,2434.1,2434.0,36.01498043]
[1750966405114,0.001,2434.1,2434.0,31.906517]
[1750966405347,0.001,2434.1,2434.0,35.91984124]
[1750966405532,0.001,2434.1,2434.0,33.82593424]
[1750966406945,0.001,2434.1,2434.0,21.47172424]
[1750966407463,0.001,2434.1,2434.0,38.85224024]
[1750966407841,0.001,2434.1,2434.0,46.36070367]
[1750966408021,0.001,2434.1,2434.0,46.87723641]
[1750966408925,0.001,2434.1,2434.0,29.15953424]
[1750966409155,0.001,2434.1,2434.0,26.60372424]
[1750966410866,0.001,2434.1,2434.0,18.17772424]
[1750966411016,0.001,2434.1,2434.0,26.60372424]
[1750966418459,0.001,2434.1,2434.0,30.71218767]
[1750966418758,0.001,2434.1,2434.0,26.60372424]
[1750966418960,0.001,2434.1,2434.0,30.71218767]
[1750966419756,0.001,2434.1,2434.0,61.26218767]
[1750966420350,0.7995,2435.0,2434.1,15.46589464]
[1750966420656,0.001,2435.1,2434.8,8.50221037]
[1750966420847,0.001,2435.1,2435.0,0.2048]
[1750966423259,0.001,2435.1,2435.0,10.2048]
[1750966424148,0.001,2435.1,2435.0,45.61777618]
[1750966424545,0.001,2435.1,2435.0,37.117913]
[1750966424740,0.001,2435.1,2435.0,29.51413724]
[1750966424941,0.001,2435.1,2435.0,24.62332424]
[1750966425263,0.001,2435.1,2435.0,25.80132424]
[1750966425761,0.001,2435.1,2435.0,23.39532424]
[1750966425962,0.001,2435.1,2435.0,28.65042424]
[1750966427234,0.001,2435.1,2435.0,28.9598257]
[1750966428863,0.001,2435.1,2435.0,33.06660188]
[1750966429366,0.001,2435.1,2435.0,20.5388257]
[1750966429573,0.001,2435.1,2435.0,32.6906217]
[1750966430370,0.001,2435.1,2435.0,53.7037257]
[1750966430552,0.001,2435.1,2435.0,57.81050188]
[1750966430941,0.001,2435.1,2435.0,27.81050188]
[1750966431271,0.001,2435.1,2435.0,57.81050188]
[1750966432472,0.001,2435.1,2435.0,27.81050188]
[1750966432679,0.001,2435.1,2435.0,34.7155387]
[1750966433391,0.001,2435.1,2435.0,15.2837257]
[1750966433683,0.001,2435.1,2435.0,18.93320146]
[1750966434503,0.001,2435.1,2435.0,42.62129746]
[1750966434658,0.001,2435.1,2435.0,49.72410146]
[1750966434865,0.001,2435.1,2435.0,53.83087764]
[1750966435373,0.001,2435.1,2435.0,54.38087764]
[1750966435557,0.001,2435.1,2435.0,58.39420188]
[1750966438182,0.001,2435.1,2435.0,54.2874257]
[1750966438492,0.001,2435.1,2435.0,58.39420188]
[1750966438862,0.001,2435.1,2435.0,61.79420188]
[1750966439366,0.001,2435.1,2435.0,57.6874257]
[1750966439565,0.001,2435.1,2435.0,27.6874257]
[1750966439773,0.001,2435.1,2435.0,57.6874257]
[1750966440155,0.001,2435.1,2435.0,41.4487257]
[1750966440353,0.001,2435.1,2435.0,32.7385257]
[1750966440553,0.001,2435.1,2435.0,24.3195257]
[1750966440782,0.001,2435.1,2435.0,32.7375257]
[1750966441186,0.14202923,2435.3,2435.0,26.3455257]
[1750966441486,0.14202923,2435.3,2435.2,10.0]
[1750966441787,0.14202923,2435.3,2435.2,10.2048]
[1750966444775,0.14202923,2435.3,2435.2,13.6048]
[1750966445165,0.95152923,2435.3,2435.2,10.2048]
[1750966445367,0.95152923,2435.3,2435.2,0.2048]
[1750966448459,0.95152923,2435.3,2435.2,6.8908]
[1750966451187,0.95152923,2435.3,2435.2,0.2048]
[1750966451387,0.95152923,2435.3,2435.1,0.2048]
[1750966451789,0.7795,2435.2,2435.1,0.2048]
[1750966453165,0.7795,2435.2,2434.9,0.2048]
[1750966453364,4.1064402,2435.2,2434.9,0.2048]
[1750966453664,0.7795,2435.1,2434.9,0.2048]
[1750966453872,4.88611272,2435.1,2434.9,0.2048]
[1750966454165,0.7835,2434.8,2434.6,0.2048]
[1750966455611,0.7835,2434.8,2434.2,6.686]
[1750966455784,0.7835,2434.8,2434.3,0.2048]
[1750966455785,0.7835,2434.7,2434.3,0.2048]
[1750966456580,4.86468836,2434.4,2434.3,0.2048]
[1750966456910,0.7569,2434.2,2434.0,0.2048]
[1750966457289,4.10829464,2434.1,2434.0,0.2048]
[1750966457494,4.10829464,2434.1,2433.8,0.2048]
[1750966457495,0.7569,2434.0,2433.8,0.2048]
[1750966458903,0.7569,2434.0,2433.9,0.2048]
[1750966459910,0.7538,2434.3,2433.9,0.2048]
[1750966460310,0.7538,2434.3,2434.2,0.2048]
[1750966462128,0.8134,2434.7,2434.2,0.2048]
[1750966462486,0.8134,2434.7,2434.6,0.2048]
[1750966462926,0.8134,2434.6,2434.1,6.688]
[1750966463234,5.62101963,2434.5,2434.4,0.2048]
[1750966463415,4.80761963,2434.5,2434.1,1.73]
[1750966463727,0.8134,2434.4,2434.2,0.2048]
[1750966463933,4.73966497,2434.4,2434.2,0.2048]
[1750966464135,0.8134,2434.3,2434.2,0.2048]
[1750966475641,4.92135711,2434.3,2434.2,0.2048]
[1750966475809,0.8134,2434.3,2433.8,1.73]
[1750966476010,0.8134,2434.3,2433.9,0.2048]
[1750966476745,0.8134,2434.3,2433.9,10.0]
[1750966476920,0.8134,2434.3,2434.1,0.2048]
[1750966477965,0.7695,2434.6,2433.9,12.25493]
[1750966478140,0.7695,2434.6,2434.2,0.2048]
[1750966478337,5.83669447,2435.1,2434.5,0.2048]
[1750966478338,0.7695,2435.0,2434.5,0.2048]
[1750966478541,4.24839097,2435.3,2434.5,0.2048]
[1750966478542,0.2048,2435.2,2434.5,0.2048]
[1750966478740,0.2048,2435.2,2434.8,0.2048]
[1750966480755,4.31138255,2435.2,2434.8,0.2048]
[1750966481068,0.7695,2435.1,2434.8,0.2048]
[1750966482231,4.87611936,2435.1,2434.8,0.2048]
[1750966482431,0.50809194,2435.0,2434.8,0.2048]
[1750966482853,0.7695,2435.1,2434.8,0.2048]
[1750966483169,0.7,2434.9,2434.8,0.2048]
[1750966484148,0.7695,2435.1,2434.8,0.2048]
[1750966488270,0.7,2434.9,2434.8,0.2048]
[1750966488872,0.14202923,2435.3,2434.8,0.2048]
[1750966488873,0.96942923,2435.3,2434.8,0.2048]
[1750966489085,0.14202923,2435.3,2434.8,0.2048]
[1750966489381,0.14202923,2435.3,2435.0,0.2048]
[1750966492170,0.14202923,2435.3,2435.0,0.9815]
[1750966492684,0.14202923,2435.3,2435.0,0.2048]
[1750966493186,0.7,2435.1,2435.0,0.2048]
[1750966496487,0.14202923,2435.3,2435.0,0.2048]
[1750966496774,0.14202923,2435.3,2435.2,0.2048]
[1750966503564,0.14202923,2435.3,2435.2,0.9959]
[1750966504751,0.14202923,2435.3,2435.2,0.2048]
[1750966510266,0.14202923,2435.3,2434.9,0.7911]
[1750966510592,0.14202923,2435.3,2435.0,0.2048]
[1750966510890,0.14202923,2435.3,2435.1,0.8219]
[1750966511056,0.14202923,2435.3,2435.2,0.2048]
[1750966514221,0.14202923,2435.3,2435.2,10.2048]
[1750966514373,0.14202923,2435.3,2435.2,13.49774426]
[1750966518599,0.14202923,2435.3,2435.2,47.60418315]
[1750966519485,0.14202923,2435.3,2435.2,48.15418315]
[1750966519711,0.14202923,2435.3,2435.2,47.94767124]
[1750966520415,0.001,2436.1,2435.6,4.10568113]
[1750966520582,0.001,2436.1,2436.0,0.2048]
[1750966521098,0.001,2436.1,2436.0,6.8888]
[1750966521785,0.001,2436.1,2436.0,0.2048]
[1750966521985,0.001,2436.1,2436.0,1.9328]
[1750966525881,0.001,2436.1,2436.0,0.2048]
[1750966528799,0.001,2436.1,2435.8,5.128]
[1750966528800,0.001,2436.1,2435.5,0.7552]
[1750966529001,0.001,2436.1,2435.8,0.2048]
[1750966532128,0.7735,2436.0,2435.8,0.2048]
[1750966532331,0.7735,2436.0,2435.2,5.93884426]
[1750966532332,0.7735,2436.0,2435.2,3.4]
[1750966532624,0.7735,2435.9,2435.6,0.2048]
[1750966533207,5.7977079,2435.9,2435.6,0.2048]
[1750966533634,1.69243686,2435.9,2435.6,0.2048]
[1750966535233,5.79769979,2435.9,2435.6,0.2048]
[1750966535429,4.10610166,2435.4,2435.3,0.2048]
[1750966535634,1.28918017,2435.4,2435.0,0.2048]
[1750966535835,0.7987,2435.1,2434.6,1.728]
[1750966536033,0.7987,2435.1,2434.8,0.2048]
[1750966539537,0.7987,2435.1,2434.6,10.0]
[1750966539538,4.9053657,2435.1,2434.6,10.0]
[1750966539735,1.0035,2435.1,2434.6,10.2048]
[1750966540056,1.92513493,2435.1,2434.6,0.2048]
[1750966540214,4.91096965,2435.0,2434.6,0.2048]
[1750966540540,4.10686965,2435.0,2434.6,0.2048]
[1750966540730,0.8041,2434.9,2434.6,0.2048]
[1750966540930,0.8041,2434.9,2434.2,0.002]
[1750966540931,0.8041,2434.6,2434.2,0.002]
[1750966541116,1.0089,2434.6,2434.2,0.2068]
[1750966542455,0.8041,2434.6,2434.4,0.2048]
[1750966543315,4.91155442,2434.6,2434.4,0.2048]
[1750966543638,0.8041,2434.6,2434.4,0.2048]
[1750966546141,10.47436008,2436.5,2434.2,0.002]
[1750966546142,0.8277,2435.0,2434.2,0.8071]
[1750966546346,4.10617176,2435.4,2434.6,0.7943]
[1750966546347,0.8306,2435.2,2434.6,0.7943]
[1750966546641,1.0354,2435.2,2434.8,0.2048]
[1750966548952,1.0354,2435.2,2434.6,0.7943]
[1750966548953,1.0354,2435.4,2434.9,0.2048]
[1750966550351,0.2048,2435.4,2435.0,0.7943]
[1750966550646,1.0354,2435.6,2435.2,0.2048]
[1750966550815,1.72230796,2435.6,2435.2,0.2048]
[1750966551217,5.82811655,2435.6,2435.2,0.2048]
[1750966552225,5.82811655,2435.6,2434.6,10.0]
[1750966552226,0.794,2435.3,2434.6,0.7749]
[1750966552548,0.794,2435.3,2435.0,0.2048]
[1750966553728,0.2048,2435.4,2435.0,0.2048]
[1750966554240,4.31094635,2435.4,2435.0,0.2048]
[1750966554437,1.12677659,2435.4,2435.0,0.2048]
[1750966554839,0.92197659,2435.4,2434.4,4.218]
[1750966555038,5.12695659,2435.0,2434.5,0.2048]
[1750966555555,4.10698256,2434.9,2434.5,0.2048]
[1750966555749,5.12695496,2435.0,2434.5,0.2048]
[1750966556121,4.10696376,2434.9,2434.5,0.2048]
[1750966556345,4.10694484,2434.9,2434.3,10.0]
[1750966556548,0.2048,2434.8,2434.4,0.2048]
[1750966556849,4.3119579,2434.8,2434.4,0.2048]
[1750966557052,0.8138,2434.7,2434.4,0.2048]
[1750966557249,4.92109094,2434.7,2434.4,0.2048]
[1750966557455,0.8138,2434.7,2434.4,0.2048]
[1750966559521,4.92108241,2434.7,2434.4,0.2048]
[1750966559750,4.92108241,2434.7,2434.3,0.2048]
[1750966559751,4.10746554,2434.6,2434.3,0.2048]
[1750966559946,1.92142319,2434.7,2434.3,0.2048]
[1750966560149,4.31248051,2434.5,2434.2,0.002]
[1750966560334,0.2048,2434.5,2434.2,0.002]
[1750966560674,12.52718039,2434.8,2434.2,0.002]
[1750966560821,0.2048,2434.6,2434.2,1.0171]
[1750966561026,4.31225732,2434.6,2434.2,1.0171]
[1750966561259,0.2048,2434.6,2434.2,0.2068]
[1750966562527,1.55946676,2434.6,2434.2,0.2068]
[1750966562726,5.66701261,2434.6,2434.2,0.2068]
[1750966562927,4.10775878,2434.5,2434.2,0.2068]
[1750966563156,0.8145,2434.4,2434.2,0.002]
[1750966564303,4.92230705,2434.4,2434.2,0.002]